Cogmind - Beta 12 @@@ ROGUE MODE // 2023.03.18 @ 08:56:43 Player: TrialByFire Result: Destroyed self with Heavy Missile Launcher Performance ------------- Evolutions (4) 2000 Regions Visited (15) 3000 Robots Destroyed (101) 505 Value Destroyed (5280) 5280 Prototype IDs (12) 240 Alien Tech Used (0) 0 Bonus (2322) 2322 TOTAL SCORE: 13347 Bonus ------- High Alert Combat Kills 783 Follower Combat Kills 39 Entered Garrisons 200 Used RIF Installer 1000 Aligned with FarCom 300 Cogmind --------- Core Integrity 0/850 Matter 218/300 Energy 290/290 System Corruption 6% Temperature Cool (27) Movement Rolling (115) Ox1 Location -6/Lower Caves Parts ------- > --- POWER (1) -------- Improved Deuterium Engine > --- PROPULSION (4) --- Armored Huge Wheel Armored Huge Wheel > --- UTILITY (6) ------ High-capacity Storage Unit Improved Melee Analysis Suite Core Analyzer Experimental Power Shielding Layered Medium Armor Plating Improved Hacking Suite > --- WEAPON (4) ------- Heavy Missile Launcher Greatsword Plasma Lance (fused) > --- INVENTORY (20) --- Graviton Reactor Biometal Leg Armored Huge Wheel Armored Huge Wheel Improved Cooling System Improved Target Analyzer Actuator Array Centrium Light Armor Plating Relay Coupler [NC] Relay Coupler [Grunt] Relay Coupler [Grunt] Relay Coupler [Sentry] (26) Relay Coupler [Sentry] (26) Relay Coupler [Hunter] (18) Heavy Linear Accelerator Improved Remote Datajack Axe Peak State ------------ > --- POWER ------------ Improved Deuterium Engine > --- PROPULSION ------- Carbon-fiber Leg Carbon-fiber Leg Carbon-fiber Leg Biometal Leg > --- UTILITY ---------- High-capacity Storage Unit Improved Melee Analysis Suite Core Analyzer Layered Heavy Armor Plating Centrium Light Armor Plating > --- WEAPON ----------- Tesla Rifle Heavy Mass Driver Plasma Lance > --- INVENTORY -------- Light Angular Momentum Engine Carbon-fiber Leg Carbon-fiber Leg Carbon-fiber Leg Improved Cooling System Actuator Array Experimental Reaction Control System Layered Medium Armor Plating Layered Medium Armor Plating Improved Hacking Suite Relay Coupler [Grunt] Relay Coupler [Grunt] Relay Coupler [Sentry] Relay Coupler [Sentry] Relay Coupler [Hunter] Heavy Linear Accelerator Heavy Missile Launcher Improved Remote Datajack Axe [Rating: 86] Favorites ----------- Power Improved Deuterium Engine Engine Improved Deuterium Engine Power Core Light Nuclear Core Propulsion Armored Wheel Treads Medium Treads Leg Carbon-fiber Leg Wheel Armored Wheel Hover Unit Gravmag System Utility Core Analyzer Device Microactuators Storage Large Storage Unit Processor Core Analyzer Hackware Improved Hacking Suite Protection Centrium Light Armor Plating Weapon Flail Energy Gun Beam Rifle Energy Cannon Heavy Particle Cannon Ballistic Gun High-powered Shotgun Ballistic Cannon Heavy Mass Driver Launcher Proton Missile Launcher Special Weapon Remote Datajack Impact Weapon Flail Slashing Weapon Axe Piercing Weapon Plasma Lance Build | -11 -10 -10 -10 -9 -8 -7 -7 -7 -7 -7 -6 -6 -6 -6 -6 ------- Run | Jun Mat Min Exi Min Mat Fac Was Fac Low Low Fac Gar Fac Low Low Slots Evolved 8 | . . . . . 4 2 . . . . 2 . . . . Power . | . . . . . . . . . . . . . . . . Propulsion 2 | . . . . . 2 . . . . . . . . . . Utility 4 | . . . . . 2 . . . . . 2 . . . . Weapon 2 | . . . . . . 2 . . . . . . . . . Parts Attached 182 | 6 13 6 4 . 39 3 1 45 1 . 17 35 11 . 1 Power 21 | 1 5 . 1 . 4 1 . 4 . . 2 3 . . . Engine 17 | 1 5 . . . 3 1 . 3 . . 2 2 . . . Core 4 | . . . 1 . 1 . . 1 . . . 1 . . . Reactor . | . . . . . . . . . . . . . . . . Propulsion 50 | 2 4 2 . . 12 . 1 14 . . 1 10 4 . . Treads 12 | . . . . . 6 . 1 . . . . 5 . . . Leg 12 | . . . . . 5 . . 1 . . . 4 2 . . Wheel 20 | 2 4 2 . . 1 . . 8 . . 1 . 2 . . Hover 6 | . . . . . . . . 5 . . . 1 . . . Flight . | . . . . . . . . . . . . . . . . Utility 51 | 1 1 . 1 . 11 . . 10 . . 10 12 5 . . Device 27 | . . . 1 . 9 . . 7 . . 3 6 1 . . Storage 7 | 1 1 . . . 1 . . 2 . . 2 . . . . Processor 3 | . . . . . . . . 1 . . 1 1 . . . Hackware 1 | . . . . . . . . . . . . . 1 . . Protection 13 | . . . . . 1 . . . . . 4 5 3 . . Artifact . | . . . . . . . . . . . . . . . . Weapon 60 | 2 3 4 2 . 12 2 . 17 1 . 4 10 2 . 1 Energy Gun 17 | 2 1 . 2 . 8 2 . . . . 1 1 . . . Energy Cannon 4 | . . . . . . . . 4 . . . . . . . Ballistic Gun 14 | . 2 2 . . 2 . . 8 . . . . . . . Ballistic Cannon 5 | . . . . . . . . . . . 1 3 1 . . Launcher 2 | . . . . . . . . 1 . . . . . . 1 Special Weapon 2 | . . . . . . . . . 1 . . 1 . . . Impact Weapon 3 | . . . . . . . . 3 . . . . . . . Slashing Weapon 12 | . . 2 . . 2 . . 1 . . 2 4 1 . . Piercing Weapon 1 | . . . . . . . . . . . . 1 . . . Special Melee Weapon . | . . . . . . . . . . . . . . . . Unidentified Prototypes 7 | . . . . . 1 . . 2 . . . 3 1 . . Parts Lost 58 | . 1 1 . . 17 . 5 7 . . 4 19 4 . . Power 7 | . . . . . 3 . 1 . . . 1 2 . . . Propulsion 27 | . 1 1 . . 7 . 3 5 . . 1 7 2 . . Utility 12 | . . . . . 3 . . 2 . . 1 5 1 . . Weapon 12 | . . . . . 4 . 1 . . . 1 5 1 . . Highest Loss Streak 14 | . 1 1 . . 14 . 5 2 . . 3 12 2 . . To Critical Strikes . | . . . . . . . . . . . . . . . . Average Slot Usage (%) 89 | . 90 100 100 100 91 100 71 72 100 100 96 94 85 80 . Engine 6 | . 14 14 3 . 6 2 4 5 7 7 5 5 6 6 . Core 1 | . . . 10 14 2 4 . 1 . . . . . . . Treads 5 | . . . . . 9 30 20 . . . . 15 . . . Leg 6 | . . . . . 20 . . 1 . . . 6 24 . . Wheel 12 | . 27 28 28 28 2 . . 10 30 30 25 3 . 13 . Hover 1 | . . . . . . . . 5 . . . . . . . Device 11 | . . . 10 14 22 23 18 14 15 15 12 11 . . . Storage 7 | . 14 14 14 14 9 7 5 6 7 7 6 6 6 6 . Processor 7 | . . . . . . . . 6 7 7 12 13 13 13 . Protection 4 | . 6 14 3 . 1 . . . . . 5 5 12 13 . Energy Gun 4 | . 20 . 22 28 15 30 21 . . . 1 . . . . Ballistic Gun 3 | . 7 27 5 . . . . 5 2 . . . . . . Special Weapon 1 | . . . . . . . . . 4 7 5 . . . . Impact Weapon 4 | . . . . . . . . 7 15 15 8 4 . . . Slashing Weapon 5 | . . . . . . . . 1 7 7 7 14 6 13 . Piercing Weapon 1 | . . . . . . . . . . . . 1 6 6 . Naked Turns . | . . . . . . . . . . . . . . . . Heaviest Build 99 | 12 30 30 32 32 40 47 47 55 49 48 70 99 99 70 . Greatest Support 104 | 26 26 20 20 20 80 80 80 52 52 52 52 104 78 56 . Greatest Overweight (x) 7 | . 2 1 1 1 7 . 7 4 . . 1 2 3 1 . Average Overweight (x) . | . . 1 1 1 . . . 1 . . . . 1 1 . Largest Inventory Capacity 20 | 8 15 15 15 15 15 15 15 15 15 15 20 20 20 20 20 Average Capacity 16 | 7 9 15 15 15 15 15 12 13 15 15 17 20 20 20 20 Most Carried 20 | 8 12 15 15 15 15 15 15 15 15 15 20 20 20 20 20 Average Carried 14 | 4 7 13 14 15 11 13 11 11 15 15 15 18 19 20 20 Final Capacity 20 | 8 15 15 15 15 15 15 5 15 15 15 20 20 20 20 20 Final Carried 20 | 6 11 15 15 15 15 14 5 15 15 15 20 20 20 20 20 Class Distribution -------------------- 58% | Mutant 23% | Scavenger-Mutant 10% | Bothacker-Mutant 3% | Bothacker-Gladiator Dominant Class ---------------- Mutant | -10/Materials Mutant | -10/Mines Scavenger-Mutant | -10/Exiles Scavenger-Mutant | -9/Mines Scavenger-Mutant | -8/Materials Scavenger-Skirmisher | -7/Factory Scavenger-Skirmisher | -7/Waste Mutant | -7/Factory Mutant | -7/Lower Caves Mutant | -7/Lower Caves Mutant | -6/Factory Mutant | -6/Garrison Bothacker-Mutant | -6/Factory Bothacker-Gladiator | -6/Lower Caves Bothacker-Gladiator | -6/Lower Caves Resources | -11 -10 -10 -10 -9 -8 -7 -7 -7 -7 -7 -6 -6 -6 -6 -6 ----------- Run | Jun Mat Min Exi Min Mat Fac Was Fac Low Low Fac Gar Fac Low Low Matter Collected 2701 | 229 220 95 . 16 274 . . 699 93 29 197 579 124 146 . Remotely . | . . . . . . . . . . . . . . . . Salvage Created 5011 | . 429 194 . . 580 . . 1050 71 . 865 1487 275 60 . Parts 247 | . 21 13 . . 23 . . 59 4 . 43 63 21 . . Haulers Intercepted 2 | . . . . . . . . 1 . . 1 . . . . Recyclers Shooed . | . . . . . . . . . . . . . . . . Parts Field Recycled . | . . . . . . . . . . . . . . . . Retrieved Matter . | . . . . . . . . . . . . . . . . Parts Self-Destructed 6 | . . . . . . . . . 4 1 . . . 1 . Prevented 2 | . . . . . . . . . . . . . . 2 . Kills | -11 -10 -10 -10 -9 -8 -7 -7 -7 -7 -7 -6 -6 -6 -6 -6 ------- Run | Jun Mat Min Exi Min Mat Fac Was Fac Low Low Fac Gar Fac Low Low Combat Hostiles Destroyed 86 | . 8 5 . . 11 . . 13 1 . 15 26 6 1 . Melee 55 | . . . . . 5 . . 6 1 . 15 21 6 1 . Guns 19 | . 8 5 . . 4 . . 2 . . . . . . . Cannons 4 | . . . . . . . . 1 . . . 3 . . . AOE 1 | . . . . . . . . 1 . . . . . . . Classes Destroyed 17 | . 5 1 . . 1 . . 3 . . 3 3 1 . . Worker 5 | . 1 . . . . . . 3 . . 1 . . . . Builder 4 | . 1 . . . . . . 3 . . . . . . . Hauler 2 | . . . . . . . . 1 . . 1 . . . . Recycler 1 | . . . . . . . . 1 . . . . . . . Mechanic 1 | . . . . . . . . . . . . . 1 . . Operator 1 | . 1 . . . . . . . . . . . . . . Watcher 2 | . 1 . . . . . . . . . . . 1 . . Swarmer 8 | . . . . . . . . . . . 3 2 3 . . Grunt 33 | . 8 4 . . 4 . . 4 . . 4 9 . . . Brawler 1 | . . . . . . . . . . . . 1 . . . Duelist 3 | . . . . . . . . . . . 1 1 1 . . Sentry 22 | . . . . . 7 . . 4 1 . 3 6 . 1 . Specialist 1 | . . . . . . . . . . . . 1 . . . Hunter 4 | . . . . . . . . . . . 1 2 1 . . Programmer 12 | . . . . . . . . 5 . . 3 3 1 . . Striker 1 | . . . . . . . . . . . . 1 . . . Assembled 1 | . . 1 . . . . . . . . . . . . . Best Kill Streak 3 | . 2 3 . . 3 . . 3 1 . 3 3 3 1 . Combat Bots Only 3 | . 2 3 . . 3 . . 3 1 . 3 3 3 1 . Max Kills in Single Turn 1 | . 1 1 . . 1 . . 1 1 . 1 1 1 1 . Gunslinging . | . . . . . . . . . . . . . . . . Exploded 1 | . . . . . . . . 1 . . . . . . . Melee 1 | . . . . . 1 . . 1 1 . 1 1 1 1 . Uniques/NPCs Destroyed . | . . . . . . . . . . . . . . . . Combat | -11 -10 -10 -10 -9 -8 -7 -7 -7 -7 -7 -6 -6 -6 -6 -6 -------- Run | Jun Mat Min Exi Min Mat Fac Was Fac Low Low Fac Gar Fac Low Low Damage Taken 11311 | . 468 204 . . 2253 . 218 1827 98 . 805 3593 1462 267 116 Core 1868 | . 86 58 . . 515 . 105 245 6 . 147 535 110 24 37 Absorbed by Shields 16 | . . . . . 16 . . . . . . . . . . Redirected to Shielding 31 | . . . . . . . . . . . . . . 13 18 Regen/Repaired (Parts) 298 | . . . . . 72 . . 226 . . . . . . . Core Remaining (%) 49 | 100 . . . 42 6 . . . . 49 . . . . . Volleys Fired 148 | . 43 10 . . 54 . 2 15 1 . 2 11 9 . 1 Largest 4 | . 2 2 . . 2 . 4 4 1 . 1 1 1 . 1 Hottest 238 | . 100 40 . . 130 . 238 150 5 . 50 83 75 . 39 Shots Fired 273 | . 85 20 . . 100 . 7 36 2 . 2 10 10 . 1 Gun 233 | . 85 20 . . 100 . 7 19 1 . 1 . . . . Cannon 35 | . . . . . . . . 15 . . . 10 10 . . Launcher 3 | . . . . . . . . 2 . . . . . . 1 Special 2 | . . . . . . . . . 1 . 1 . . . . Kinetic 92 | . 32 20 . . . . . 19 1 . . 10 10 . . Thermal 175 | . 53 . . . 100 . 7 15 . . . . . . . Explosive 1 | . . . . . . . . . . . . . . . 1 Electromagnetic 3 | . . . . . . . . 2 . . 1 . . . . Robot Hit Streak 13 | . 13 9 . . 11 . 2 9 5 . 6 7 1 . 1 Robot Miss Streak 4 | . 3 1 . . 4 . 2 4 . . . 2 2 . . Penetration Max 1 | . . . . . . . . . . . . . 1 . . Secondary Targets 1 | . . 1 . . . . . . . . . . . . . Max Gunslinging Chain 1 | . . 1 . . . . . . . . . . . . . Shots Hit Robots 406 | . 57 14 . . 86 . 3 61 4 . 39 112 20 9 1 Core Hits 164 | . 27 12 . . 22 . . 25 2 . 21 42 7 2 4 Critical Kills 1 | . . . . . . . . 1 . . . . . . . Critical Parts Destroyed 6 | . . . . . . . . 4 . . . 2 . . . Critical Strikes 43 | . 6 . . . 5 . . 5 . . 1 16 5 5 . Burn 11 | . 6 . . . 5 . . . . . . . . . . Blast 4 | . . . . . . . . . . . . 3 1 . . Smash 7 | . . . . . . . . 5 . . . 2 . . . Sever 17 | . . . . . . . . . . . 1 11 . 5 . Impale 4 | . . . . . . . . . . . . . 4 . . Melee Attacks 452 | . . 9 . . 18 . . 58 7 . 84 220 46 10 . Impact 99 | . . . . . . . . 48 2 . 19 30 . . . Slashing 315 | . . 9 . . 18 . . 10 5 . 65 182 17 9 . Piercing 38 | . . . . . . . . . . . . 8 29 1 . Sneak Attacks 15 | . . . . . . . . 8 . . 7 . . . . Combat Hostiles 4 | . . . . . . . . . . . 4 . . . . Follow-up Attacks 64 | . . . . . . . . 9 . . 14 32 5 4 . Damage Inflicted 12863 | . 661 132 . . 1422 . 53 2669 99 . 1591 4398 1186 419 233 Guns 2199 | . 661 132 . . 1137 . 53 216 . . . . . . . Cannons 1040 | . . . . . . . . 236 . . . 456 348 . . Explosions 485 | . . . . . . . . 126 . . . . 126 . 233 Melee 8993 | . . . . . 285 . . 1945 99 . 1591 3942 712 419 . Ramming 146 | . . . . . . . . 146 . . . . . . . Kinetic 1399 | . 247 132 . . . . . 216 . . . 456 348 . . Thermal 1939 | . 414 . . . 1137 . 53 236 . . . . 99 . . Explosive 257 | . . . . . . . . . . . . . 24 . 233 Electromagnetic 129 | . . . . . . . . 126 . . . . 3 . . Impact 2719 | . . . . . . . . 1762 . . 326 631 . . . Slashing 5425 | . . . . . 285 . . 183 99 . 1265 3116 105 372 . Piercing 849 | . . . . . . . . . . . . 195 607 47 . Highest Corruption 32 | . . . . . . . 15 32 32 32 2 5 6 6 6 Average Corruption 11 | . . . . . . . 8 21 32 32 1 4 5 6 6 Corruption Purged . | . . . . . . . . . . . . . . . . Corruption Blocked . | . . . . . . . . . . . . . . . . Effects 286 | . . . . . . . 6 106 35 4 14 72 37 12 . Message Errors 57 | . . . . . . . 1 25 4 1 5 11 7 3 . Matter Fused 87 | . . . . . . . . 27 13 2 5 24 11 5 . Heat Flow Errors 36 | . . . . . . . 1 14 5 . 1 8 5 2 . Energy Discharges 40 | . . . . . . . . 15 6 1 . 14 4 . . Parts Fused 6 | . . . . . . . . 3 . . 1 2 . . . Data Loss (minor) 24 | . . . . . . . . 6 3 . 1 7 5 2 . Data Loss (major) 18 | . . . . . . . 1 8 2 . 1 4 2 . . Misfires 7 | . . . . . . . 1 4 1 . . . 1 . . Alerts 6 | . . . . . . . . 2 1 . . 1 2 . . Weapon Failures 5 | . . . . . . . 2 2 . . . 1 . . . Overload Shots . | . . . . . . . . . . . . . . . . Overflow Damage 1151 | . . . . . . . . 633 . . 122 179 215 2 . Projectiles 69 | . . . . . . . . 7 . . . 38 24 . . Explosions 17 | . . . . . . . . . . . . . 17 . . Melee 1065 | . . . . . . . . 626 . . 122 141 174 2 . Knockbacks 17 | . . . . . . . . 8 . . 1 7 1 . . Impact 12 | . . . . . . . . 8 . . 1 3 . . . Kinetic 4 | . . . . . . . . . . . . 3 1 . . Secondary 1 | . . . . . . . . . . . . 1 . . . Self-Inflicted Damage 299 | . . . . . . . . 66 . . . . 216 . 17 Shots 4 | . . . . . . . . . . . . . 3 . 1 Rammed 25 | . . . . . . . . 25 . . . . . . . Targets Rammed 25 | . . . . . . . . 25 . . . . . . . Kicked . | . . . . . . . . . . . . . . . . Crushed . | . . . . . . . . . . . . . . . . Highest Temperature 312 | . 239 22 . . 265 . 187 312 268 . 193 259 265 139 . Average Temperature 92 | . 77 8 . . 99 . 107 115 121 . 109 81 90 71 . Received Heat Transfer 3022 | . 255 57 . . 1051 . . 399 18 . 96 891 153 66 36 Effects 3 | . 1 . . . . . . . 2 . . . . . . Interference 3 | . 1 . . . . . . . 2 . . . . . . Siege Activations . | . . . . . . . . . . . . . . . . Robots Corrupted 1 | . . . . . . . . 1 . . . . . . . Combat Hostiles 1 | . . . . . . . . 1 . . . . . . . Parts Fried 11 | . . . . . . . . 7 . . 1 3 . . . Impact Corruptions 25 | . . . . . . . . 21 . . 2 2 . . . Robots Melted 2 | . . . . . 2 . . . . . . . . . . Combat Hostiles 2 | . . . . . 2 . . . . . . . . . . Parts Melted 18 | . 6 . . . 12 . . . . . . . . . . Heat Transferred 5354 | . 1665 . . . 3182 . 111 296 . . . . 100 . . Parts Sabotaged . | . . . . . . . . . . . . . . . . Parts Stolen . | . . . . . . . . . . . . . . . . Parts Stripped . | . . . . . . . . . . . . . . . . Power Chain Reactions . | . . . . . . . . . . . . . . . . Missiles Intercepted . | . . . . . . . . . . . . . . . . Alert | -11 -10 -10 -10 -9 -8 -7 -7 -7 -7 -7 -6 -6 -6 -6 -6 ------- Run | Jun Mat Min Exi Min Mat Fac Was Fac Low Low Fac Gar Fac Low Low Peak Influence 1740 | . 180 217 . . 190 22 15 390 . . 243 1740 922 . . Initial 913 | . . 42 . . . 22 7 10 . . 39 170 913 . . Average 344 | . 78 90 . . 67 22 7 77 . . 87 883 794 . . Maximum Alert Level 5 | . . 1 . . . . . 1 . . 1 5 3 . . Low Security (%) 61 | 100 100 92 . 100 100 100 100 84 . . 96 . . . . Level 1 6 | . . 7 . . . . . 15 . . 3 9 . . . Level 2 8 | . . . . . . . . . . . . 28 14 . . Level 3 16 | . . . . . . . . . . . . 29 85 . . Level 4 6 | . . . . . . . . . . . . 25 . . . Level 5 1 | . . . . . . . . . . . . 5 . . . High Security . | . . . . . . . . . . . . . . . . Max Security . | . . . . . . . . . . . . . . . . Squads Dispatched 23 | . 2 . . . 3 . . 7 . . 6 . 5 . . Investigation 5 | . 2 . . . . . . 1 . . 1 . 1 . . Extermination 8 | . . . . . . . . 4 . . 2 . 2 . . Reinforcement 3 | . . . . . . . . 2 . . . . 1 . . Assault 1 | . . . . . . . . . . . . . 1 . . Garrison 6 | . . . . . 3 . . . . . 3 . . . . Intercept . | . . . . . . . . . . . . . . . . Searches Triggered . | . . . . . . . . . . . . . . . . Construction Impeded 1 | . . . . . . . . 1 . . . . . . . Haulers Reinforced . | . . . . . . . . . . . . . . . . Active Scanning Responses . | . . . . . . . . . . . . . . . . Cargo Convoy Interrupts . | . . . . . . . . . . . . . . . . Stealth | -11 -10 -10 -10 -9 -8 -7 -7 -7 -7 -7 -6 -6 -6 -6 -6 --------- Run | Jun Mat Min Exi Min Mat Fac Was Fac Low Low Fac Gar Fac Low Low Distress Signals 4 | . 1 . . . 2 . . . . . 1 . . . . Communications Jammed . | . . . . . . . . . . . . . . . . Distress Signals . | . . . . . . . . . . . . . . . . Times Spotted 150 | . 13 11 . . 28 . 5 24 2 . 15 31 13 4 4 Peak Tracking Total 6 | . 2 3 . . 6 . 5 5 1 . 4 5 5 3 4 Tactical Retreats 36 | . 1 3 . . 12 . . 3 1 . 1 11 3 1 . Traps | -11 -10 -10 -10 -9 -8 -7 -7 -7 -7 -7 -6 -6 -6 -6 -6 ------- Run | Jun Mat Min Exi Min Mat Fac Was Fac Low Low Fac Gar Fac Low Low Traps Triggered 25 | . 4 . . . . 1 . 5 . . 4 10 1 . . Indirectly . | . . . . . . . . . . . . . . . . Trap Hack Attempts . | . . . . . . . . . . . . . . . . Triggered . | . . . . . . . . . . . . . . . . Disarmed . | . . . . . . . . . . . . . . . . Reprogrammed . | . . . . . . . . . . . . . . . . Reused . | . . . . . . . . . . . . . . . . Traps Extracted . | . . . . . . . . . . . . . . . . Installed . | . . . . . . . . . . . . . . . . Triggered 2 | . . . . . . . . . . 1 . . . 1 . Machines | -11 -10 -10 -10 -9 -8 -7 -7 -7 -7 -7 -6 -6 -6 -6 -6 ---------- Run | Jun Mat Min Exi Min Mat Fac Was Fac Low Low Fac Gar Fac Low Low Machines Disabled 20 | . . . . . . . . 4 . . . 8 8 . . Max in Single Turn 4 | . . . . . . . . 4 . . . 1 4 . . Garrison Access 1 | . . . . . . . . . . . . . 1 . . Garrison Relay 4 | . . . . . . . . . . . . 4 . . . Machines Repaired . | . . . . . . . . . . . . . . . . Machines Sabotaged . | . . . . . . . . . . . . . . . . Overloaded Fab Kills . | . . . . . . . . . . . . . . . . Hacking | -11 -10 -10 -10 -9 -8 -7 -7 -7 -7 -7 -6 -6 -6 -6 -6 --------- Run | Jun Mat Min Exi Min Mat Fac Was Fac Low Low Fac Gar Fac Low Low Machines Accessed 42 | . 6 . 1 . 10 . . 10 . . 7 2 6 . . Terminals 27 | . 5 . . . 7 . . 5 . . 5 2 3 . . Fabricators 4 | . . . . . . . . 3 . . . . 1 . . Repair Stations 3 | . 1 . . . 1 . . 1 . . . . . . . Recycling Units 1 | . . . . . 1 . . . . . . . . . . Scanalyzers 3 | . . . . . . . . 1 . . 1 . 1 . . Garrison Access 3 | . . . . . 1 . . . . . 1 . 1 . . Total Hacks 122 | . 16 . 4 . 35 . . 32 . . 21 4 10 . . Successful 75 | . 6 . 4 . 25 . . 19 . . 13 . 8 . . Failed 47 | . 10 . . . 10 . . 13 . . 8 4 2 . . Catastrophic 3 | . . . . . . . . 2 . . . 1 . . . Database Lockouts . | . . . . . . . . . . . . . . . . Manual 40 | . 8 . 1 . 11 . . 10 . . 7 . 3 . . Terminals 77 | . 11 . . . 27 . . 14 . . 16 4 5 . . Fabricators 5 | . . . . . . . . 3 . . . . 2 . . Repair Stations 18 | . 5 . . . 4 . . 9 . . . . . . . Recycling Units 2 | . . . . . 2 . . . . . . . . . . Scanalyzers 10 | . . . . . . . . 6 . . 2 . 2 . . Garrison Access 6 | . . . . . 2 . . . . . 3 . 1 . . Terminal Hacks 29 | . 1 . 4 . 14 . . 2 . . 7 . 1 . . Record 8 | . . . 4 . . . . . . . 3 . 1 . . Prototype ID Bank 3 | . . . . . 3 . . . . . . . . . . Open DSF 1 | . . . . . . . . . . . 1 . . . . Branch Access Points 1 | . . . . . 1 . . . . . . . . . . Emergency Access Points 1 | . . . . . . . . 1 . . . . . . . Terminal Index 1 | . . . . . 1 . . . . . . . . . . Scanalyzer Index 1 | . . . . . 1 . . . . . . . . . . Alert Level 2 | . . . . . 1 . . . . . 1 . . . . Unreport Threat 1 | . . . . . 1 . . . . . . . . . . Locate Traps 4 | . . . . . 3 . . 1 . . . . . . . Dispatch Records 1 | . . . . . 1 . . . . . . . . . . Investigation Status 1 | . . . . . 1 . . . . . . . . . . Hauler Manifests 2 | . . . . . 1 . . . . . 1 . . . . Zone Layout 2 | . 1 . . . . . . . . . 1 . . . . Fabricator Hacks 5 | . . . . . . . . 3 . . . . 2 . . Network Status 4 | . . . . . . . . 3 . . . . 1 . . Build 1 | . . . . . . . . . . . . . 1 . . Repair Station Hacks 12 | . 2 . . . 4 . . 6 . . . . . . . Scan Component 6 | . 1 . . . 2 . . 3 . . . . . . . Repair 5 | . . . . . 2 . . 3 . . . . . . . Refit 1 | . 1 . . . . . . . . . . . . . . Recycling Unit Hacks 2 | . . . . . 2 . . . . . . . . . . Report Inventory 1 | . . . . . 1 . . . . . . . . . . Retrieve Components 1 | . . . . . 1 . . . . . . . . . . Scanalyzer 8 | . . . . . . . . 5 . . 1 . 2 . . Insert Component 4 | . . . . . . . . 2 . . 1 . 1 . . Analyze 4 | . . . . . . . . 3 . . . . 1 . . Garrison Access Hacks 3 | . . . . . 1 . . . . . 1 . 1 . . Unlock Access 2 | . . . . . 1 . . . . . 1 . . . . Seal Access 1 | . . . . . . . . . . . . . 1 . . Unauthorized Hacks 16 | . 3 . . . 4 . . 3 . . 4 . 2 . . Terminals 16 | . 3 . . . 4 . . 3 . . 4 . 2 . . Assimilate 1 | . . . . . . . . . . . 1 . . . . Botnet 15 | . 3 . . . 4 . . 3 . . 3 . 2 . . Fabricators . | . . . . . . . . . . . . . . . . Repair Stations . | . . . . . . . . . . . . . . . . Recycling Units . | . . . . . . . . . . . . . . . . Scanalyzers . | . . . . . . . . . . . . . . . . Garrison Access . | . . . . . . . . . . . . . . . . Data Cores Recovered 1 | . 1 . . . . . . . . . . . . . . Used . | . . . . . . . . . . . . . . . . Hacking Detections 35 | . 5 . . . 10 . . 9 . . 5 2 4 . . Full Trace Events 1 | . . . . . . . . . . . . 1 . . . Feedback Events . | . . . . . . . . . . . . . . . . Feedback Blocked . | . . . . . . . . . . . . . . . . Robot Schematics Acquired . | . . . . . . . . . . . . . . . . Robots Built . | . . . . . . . . . . . . . . . . Authchips . | . . . . . . . . . . . . . . . . Time . | . . . . . . . . . . . . . . . . Total Robot Build Rating . | . . . . . . . . . . . . . . . . Part Schematics Acquired 3 | . . . . . . . . 2 . . . . 1 . . Parts Built 1 | . . . . . . . . . . . . . 1 . . Authchips . | . . . . . . . . . . . . . . . . Time 204 | . . . . . . . . . . . . . 204 . . Total Part Build Rating 8 | . . . . . . . . . . . . . 8 . . Parts Repaired 5 | . . . . . 2 . . 3 . . . . . . . Time 154 | . . . . . 58 . . 96 . . . . . . . Parts Recycled . | . . . . . . . . . . . . . . . . Recycled Matter . | . . . . . . . . . . . . . . . . Retrieved Matter . | . . . . . . . . . . . . . . . . Retrieved Components 9 | . . . . . 9 . . . . . . . . . . Parts Scanalyzed 4 | . . . . . . . . 2 . . 1 . 1 . . Part Schematics Acquired 3 | . . . . . . . . 2 . . . . 1 . . Parts Damaged 1 | . . . . . . . . 1 . . . . . . . Bothacking | -11 -10 -10 -10 -9 -8 -7 -7 -7 -7 -7 -6 -6 -6 -6 -6 ------------ Run | Jun Mat Min Exi Min Mat Fac Was Fac Low Low Fac Gar Fac Low Low Used RIF Installer 2 | . . . . . . . . . . . . 2 . . . Threat Obfuscator 1 | . . . . . . . . . . . . 1 . . . Robots Hacked 2 | . . . . . . . . . 1 . 1 . . . . Non-combat 2 | . . . . . . . . . 1 . 1 . . . . Combat . | . . . . . . . . . . . . . . . . Robot Hacks Applied 2 | . . . . . . . . . 1 . 1 . . . . parse_system 1 | . . . . . . . . . 1 . . . . . . find_recycling 1 | . . . . . . . . . . . 1 . . . . Relay Couplers Released 14 | . . . . . . . . . . . . 14 . . . Machine Destruction 14 | . . . . . . . . . . . . 14 . . . Fabnet Peak Effective % . | . . . . . . . . . . . . . . . . Robots Rewired . | . . . . . . . . . . . . . . . . Allies Hacked . | . . . . . . . . . . . . . . . . Hacks Repelled . | . . . . . . . . . . . . . . . . Allies | -11 -10 -10 -10 -9 -8 -7 -7 -7 -7 -7 -6 -6 -6 -6 -6 -------- Run | Jun Mat Min Exi Min Mat Fac Was Fac Low Low Fac Gar Fac Low Low Total Allies 4 | . . 3 . . . . . . . . 1 . . . . Largest Group 3 | . . 3 2 2 2 . . . . . 1 . . . . Highest-Rated Group 40 | . . 40 24 24 24 . . . . . 10 . . . . Highest-Rated Ally 16 | . . 16 16 16 16 . . . . . 10 . . . . Total Orders . | . . . . . . . . . . . . . . . . Ally Attacks 21 | . . 18 . . 3 . . . . . . . . . . Total Damage 216 | . . 182 . . 34 . . . . . . . . . . Kills 4 | . . 4 . . . . . . . . . . . . . Allies Corrupted . | . . . . . . . . . . . . . . . . Allies Melted . | . . . . . . . . . . . . . . . . Intel | -11 -10 -10 -10 -9 -8 -7 -7 -7 -7 -7 -6 -6 -6 -6 -6 ------- Run | Jun Mat Min Exi Min Mat Fac Was Fac Low Low Fac Gar Fac Low Low Robot Analysis Total . | . . . . . . . . . . . . . . . . Derelict Logs Recovered 5 | . . 2 . 1 . . . . 2 . . . . . . Drone Launches . | . . . . . . . . . . . . . . . . Drone Recoveries . | . . . . . . . . . . . . . . . . Exploration | -11 -10 -10 -10 -9 -8 -7 -7 -7 -7 -7 -6 -6 -6 -6 -6 ------------- Run | Jun Mat Min Exi Min Mat Fac Was Fac Low Low Fac Gar Fac Low Low Turns Passed 12704 | 64 582 617 441 83 1633 186 146 2355 722 80 1571 2640 1178 404 2 Spaces Moved 7467 | 53 381 496 439 78 658 112 130 1135 749 87 1090 1190 545 324 . Core 199 | 3 . . . . 8 . 76 112 . . . . . . . Treads 1063 | . . . . . 212 112 54 . . . . 685 . . . Legs 1140 | . . . . . 369 . . . . . . 271 500 . . Wheels 4608 | 50 381 496 439 78 69 . . 566 749 87 1090 234 45 324 . Hover 457 | . . . . . . . . 457 . . . . . . . Flight . | . . . . . . . . . . . . . . . . Fastest Speed 50 | 50 80 95 95 95 95 160 50 87 92 92 92 101 115 115 . Average Speed 126 | 87 92 95 95 95 135 160 99 155 92 92 101 156 181 115 . Slowest Speed 400 | 90 110 95 95 95 400 160 400 300 92 92 107 240 255 115 . Overloaded Moves . | . . . . . . . . . . . . . . . . Propulsion Burnouts . | . . . . . . . . . . . . . . . . Robots Hopped . | . . . . . . . . . . . . . . . . Cave-ins Triggered . | . . . . . . . . . . . . . . . . Exploration Rate (%) 42 | 4 60 69 91 23 44 3 79 30 92 16 28 86 16 44 1 Regions Visited 15 Branch Regions 7 Pre-discovered Areas 4 | . . 2 1 1 . . . . . . . . . . . Known Exits Taken 1 | . . . . . . . . . . . 1 . . . . Unknown Exits Taken 11 | 1 1 1 1 1 1 . . 1 1 1 . . 1 1 . Scrap Searched 6 | . . 1 . 1 . . . . 2 1 . . . 1 . Spaces Dug 70 | . . . . . . . . 5 1 . 23 29 12 . . Terrain Destroyed 128 | . . . . . . . . 5 1 . 23 32 52 . 15 Melee 69 | . . . . . . . . 5 1 . 23 29 11 . . Projectile 8 | . . . . . . . . . . . . 3 5 . . AOE 51 | . . . . . . . . . . . . . 36 . 15 Terrain Rammed . | . . . . . . . . . . . . . . . . Walls Destroyed . | . . . . . . . . . . . . . . . . Machines Disabled . | . . . . . . . . . . . . . . . . Actions | -11 -10 -10 -10 -9 -8 -7 -7 -7 -7 -7 -6 -6 -6 -6 -6 --------- Run | Jun Mat Min Exi Min Mat Fac Was Fac Low Low Fac Gar Fac Low Low Total 10018 | 70 530 603 461 86 1267 120 140 1632 775 86 1490 1753 660 343 2 Wait 1548 | . 78 76 17 9 448 . 7 300 20 . 271 275 32 15 . Move 7454 | 52 380 495 438 77 657 112 129 1134 748 86 1090 1189 544 323 . Hop . | . . . . . . . . . . . . . . . . Pick Up 177 | 12 8 6 1 . 37 3 1 44 . . 18 35 12 . . Fast Attach 24 | . 4 . . . 1 . . 10 . . 5 3 1 . . Attach 85 | 6 1 1 1 . 25 2 1 15 . . 5 20 8 . . Detach 6 | . . . . . . . . 1 . . . 3 2 . . Swap 73 | . 8 5 3 . 13 1 . 20 1 . 7 12 2 . 1 Drop 92 | . 8 1 1 . 14 2 . 21 . . 11 22 12 . . Fire 148 | . 43 10 . . 54 . 2 15 1 . 2 11 9 . 1 Melee 329 | . . 9 . . 18 . . 47 5 . 57 150 38 5 . Ram 25 | . . . . . . . . 25 . . . . . . . Kick . | . . . . . . . . . . . . . . . . Crush . | . . . . . . . . . . . . . . . . Escape Stasis 57 | . . . . . . . . . . . 24 33 . . . Rewire . | . . . . . . . . . . . . . . . . Trap . | . . . . . . . . . . . . . . . . Miscellaneous . | . . . . . . . . . . . . . . . . Route ------- -11/Junkyard -10/Materials (discovered 2 exits: [*Mat] / [*Min]) -10/Mines (discovered 3 exits: [*Mat x2] / *Exi) -10/Exiles (discovered 2 exits: [*Min x2]) -9/Mines -8/Materials (discovered 3 exits: [*Fac] / Sto / Gar) -7/Factory -7/Waste -7/Factory -7/Lower Caves -7/Lower Caves -6/Factory (discovered 3 exits: [*Fac] / [*Low] / Gar) -6/Garrison (discovered 3 exits: *Fac x3) -6/Factory -6/Lower Caves -6/Lower Caves History --------- Turn | Location | Event 15 | -11/Junkyard | Discovered new exit (range 15) 65 | -11/Junkyard | Entered Materials 321 | -10/Materials | Discovered new exit (range 16) 349 | -10/Materials | Build established: Mutant 445 | -10/Materials | Discovered new exit (range 16) 647 | -10/Materials | Entered Mines 684 | -10/Mines | Discovered new exit (range 5) 721 | -10/Mines | Excavation squad dispatched 721 | -10/Mines | A large section of the Mines collapsed 811 | -10/Mines | Core integrity fell below 50% 852 | -10/Mines | Assisted by bots powering up and referring to "LRC-V3" 858 | -10/Mines | Discovered new exit (range 6) 1082 | -10/Mines | Learned location of Zion (-6) 1251 | -10/Mines | Deemed a non-threat by the Exiles lab entrance 1251 | -10/Mines | Discovered new exit (range 5) 1264 | -10/Mines | Entered Exiles 1264 | -10/Exiles | Accompanied by 2 allies 1278 | -10/Exiles | Discovered new exit (range 15) 1308 | -10/Exiles | Met 8R-AWN 1324 | -10/Exiles | Met EX-HEX 1377 | -10/Exiles | Met EX-DEC 1398 | -10/Exiles | Visited The Gauntlet 1548 | -10/Exiles | Met EX-BIN 1560 | -10/Exiles | Aligned with FarCom system 1561 | -10/Exiles | Given EX-Vault access code 1583 | -10/Exiles | Opened EX-Vault 1588 | -10/Exiles | Found Prototype Device 1609 | -10/Exiles | Warned to stay clear of 0b10 Research branches 1667 | -10/Exiles | Build established: Scavenger-Mutant 1689 | -10/Exiles | Discovered new exit (range 12) 1705 | -10/Exiles | Left Exiles lab with Supersonic Drone Bay 1705 | -10/Exiles | Entered Mines 1705 | -9/Mines | Accompanied by 2 allies 1740 | -9/Mines | Discovered new exit (range 5) 1788 | -9/Mines | Entered Materials 1788 | -8/Materials | Accompanied by 2 allies 1788 | -8/Materials | Evolved 4 slots: Propulsion x2, Utility x2 1789 | -8/Materials | Identified Supersonic Drone Bay 1909 | -8/Materials | Garrison activated, responded to threat 2005 | -8/Materials | Core integrity fell below 50% 2012 | -8/Materials | Lost 14 parts (3p5n2u4w) 2038 | -8/Materials | Core integrity fell below 20% 2222 | -8/Materials | Identified exit to Garrison 2518 | -8/Materials | Identified exit to Storage 3165 | -8/Materials | Repaired Lgt. Treads 3198 | -8/Materials | Repaired Imp. Ion Engine 3405 | -8/Materials | Discovered new exit (range 3) 3421 | -8/Materials | Entered Factory 3421 | -7/Factory | Evolved 2 slots: Weapon x2 3607 | -7/Factory | Sucked down chute 3607 | -7/Factory | Entered Waste 3622 | -7/Waste | EMP discharged 3644 | -7/Waste | Spotted C-40 Crusher 3695 | -7/Waste | Spotted C-40 Crusher 3697 | -7/Waste | Spotted C-40 Crusher 3698 | -7/Waste | Spotted C-40 Crusher 3703 | -7/Waste | Crushed by Compactor (1 part destroyed, 2 dropped) 3707 | -7/Waste | Crushed by Compactor (1 part destroyed, 1 dropped) 3708 | -7/Waste | Crushed by Compactor (1 part destroyed, 1 dropped) 3710 | -7/Waste | Crushed by Compactor (1 part destroyed, 2 dropped) 3715 | -7/Waste | Crushed by Compactor (1 part destroyed, 2 dropped) 3722 | -7/Waste | EMP discharged 3722 | -7/Waste | System corruption reached 10% 3722 | -7/Waste | Spotted C-40 Crusher 3737 | -7/Waste | Spotted C-40 Crusher 3746 | -7/Waste | Lost 5 parts (1p3n1w) 3746 | -7/Waste | Discovered new exit (range 12) 3753 | -7/Waste | Entered Factory 4003 | -7/Factory | Build established: Mutant 5920 | -7/Factory | System corruption reached 30% 5954 | -7/Factory | Repaired Flail 5988 | -7/Factory | Repaired Arm. Wheel 6021 | -7/Factory | Repaired Arm. Wheel 6100 | -7/Factory | Discovered new exit (range 8) 6108 | -7/Factory | Entered Lower Caves 6376 | -7/Lower Caves | Spotted B-75 Beast 6505 | -7/Lower Caves | Learned location of 1 exit from Proximity Caves 6517 | -7/Lower Caves | Learned Factory emergency access door positions 6725 | -7/Lower Caves | Attracted the attention of an 0b10 checkpoint 6750 | -7/Lower Caves | Core integrity fell below 50% 6815 | -7/Lower Caves | Discovered new exit (range 13) 6830 | -7/Lower Caves | Entered another Lower Caves area 6902 | -7/Lower Caves | Discovered new exit (range 7) 6910 | -7/Lower Caves | Entered Factory 6910 | -6/Factory | Evolved 2 slots: Utility x2 7492 | -6/Factory | Discovered new exit (range 8) 7514 | -6/Factory | Lost 3 parts (1p1n1w) 8257 | -6/Factory | Garrison activated, responded to threat 8428 | -6/Factory | Discovered new exit (range 10) 8481 | -6/Factory | Identified exit to Garrison 8481 | -6/Factory | Entered Garrison 8548 | -6/Garrison | Triggered checkpoint 8570 | -6/Garrison | Garrison Relay disabled 8653 | -6/Garrison | Heavy support dispatched to Factory 8711 | -6/Garrison | Build established: Scavenger-Mutant 8752 | -6/Garrison | H-XX Assembler disabled 8931 | -6/Garrison | Lost 3 parts (2n1u) 9077 | -6/Garrison | Build established: Mutant 9596 | -6/Garrison | Triggered checkpoint 9613 | -6/Garrison | Installed Relay Interface Framework 9659 | -6/Garrison | Garrison Relay disabled 9716 | -6/Garrison | Discovered new exit (range 14) 9933 | -6/Garrison | Found Unknown Protection 9934 | -6/Garrison | Identified Imp. Powered Armor 10010 | -6/Garrison | Triggered checkpoint 10178 | -6/Garrison | Discovered new exit (range 10) 10448 | -6/Garrison | Triggered checkpoint 10452 | -6/Garrison | Spotted Striker 10452 | -6/Garrison | Spotted Striker 10457 | -6/Garrison | Destroyed Striker 10472 | -6/Garrison | Core integrity fell below 50% 10543 | -6/Garrison | Lost 12 parts (2p4n3u3w) 10610 | -6/Garrison | Garrison Relay disabled 10738 | -6/Garrison | Triggered checkpoint 10818 | -6/Garrison | Build established: Scavenger-Mutant 10858 | -6/Garrison | Discovered new exit (range 9) 10952 | -6/Garrison | Core integrity fell below 20% 11009 | -6/Garrison | Expanded RIF knowledge: Threat Obfuscation 11040 | -6/Garrison | Triggered checkpoint 11068 | -6/Garrison | Garrison Relay disabled 11121 | -6/Garrison | Entered Factory 11245 | -6/Factory | Build established: Bothacker-Mutant 12087 | -6/Factory | Fabricated Graviton Reactor (x1) 12171 | -6/Factory | First assault squad dispatched 12288 | -6/Factory | Discovered new exit (range 6) 12299 | -6/Factory | Entered Lower Caves 12585 | -6/Lower Caves | Build established: Bothacker-Gladiator 12613 | -6/Lower Caves | Attracted the attention of an 0b10 checkpoint 12654 | -6/Lower Caves | Discovered new exit (range 9) 12703 | -6/Lower Caves | Entered another Lower Caves area 12705 | -6/Lower Caves | Destroyed self with Heavy Missile Launcher Last Messages --------------- 12634_ Y-54 Guardian Imp. Deuterium Engine severed. 12637_ Axe follow-up attack on Y-54 Guardian. 12637_ Y-54 Guardian Imp. Light Armor Plating severed. 12640_ Y-54 Guardian Gatling Laser severed. 12640_ Axe follow-up attack on Y-54 Guardian. 12640_ Destroyed Imp. Heat Sink. 12644_ Y-54 Guardian Flak Gun severed. 12644_ Plasma Lance follow-up attack on Y-54 Guardian. 12644_ Y-54 Guardian destroyed. 12650_ Acquired 60 matter. 12654_ EXIT=FOUND 12658_ RRFWIJC5&P4OFTO